bitfinex-derivatives/quotes_ETHF0:USTF0_20250217
["timestamp","ask_amount","ask_price","bid_price","bid_amount"]
[1739804986783,0.00338943,2819.7,2819.6,6.70922]
[1739804986985,3.2078,2820.3,2820.2,0.70907]
[1739804987291,3.2078,2820.6,2820.0,3.154]
[1739804987689,3.2078,2820.6,2820.3,0.70903]
[1739804988199,3.2078,2820.6,2820.4,0.70901]
[1739804988394,3.2078,2820.6,2820.2,0.00532226]
[1739804988588,3.2078,2820.6,2820.4,0.709]
[1739804988789,3.2078,2820.6,2820.3,0.70902]
[1739804988989,3.2078,2820.6,2820.2,0.00532226]
[1739804989190,3.2078,2820.3,2820.2,0.00532226]
[1739804990802,3.91684,2820.3,2820.2,0.00532226]
[1739804991004,8.40867354,2820.3,2819.6,7.34428658]
[1739804991299,3.2078,2819.7,2819.6,7.34428658]
[1739804991496,3.2078,2819.7,2819.1,3.133]
[1739804991796,3.2078,2819.7,2819.6,0.70922]
[1739804992593,3.2078,2819.7,2819.4,0.00532226]
[1739804992895,3.2078,2819.7,2819.6,0.70922]
[1739804993897,3.2078,2819.7,2819.4,0.00532226]
[1739804994305,3.2078,2819.5,2819.4,0.00532226]
[1739804994994,4.27767354,2819.4,2818.4,0.0332525]
[1739804995194,3.2078,2819.2,2819.1,0.70934]
[1739804996094,3.2078,2819.7,2818.9,1.77880226]
[1739804996394,3.2078,2819.7,2818.9,0.00532226]
[1739804996795,3.2078,2819.7,2819.0,1.77343]
[1739804997101,3.2078,2819.4,2819.3,0.70929]
[1739804997300,3.2078,2819.4,2819.0,3.104]
[1739804997501,3.2078,2819.4,2819.3,0.70929]
[1739804998097,3.2078,2819.7,2819.6,0.70922]
[1739804998292,3.2078,2819.8,2819.1,1.77333]
[1739804998494,3.2078,2819.8,2819.7,0.70919]
[1739804998695,0.00532226,2819.9,2819.7,0.70919]
[1739804998896,3.2078,2819.8,2819.2,1.77331]
[1739804999101,3.2078,2819.8,2818.9,1.77876226]
[1739804999301,3.2078,2819.8,2819.2,3.091]
[1739804999491,3.2078,2819.5,2819.2,3.091]
[1739804999697,3.2078,2819.5,2819.4,0.70925]
[1739804999992,3.2078,2819.5,2818.9,3.09032226]
[1739805000192,3.2078,2819.5,2819.0,0.70935]
[1739805000398,3.2078,2819.2,2818.9,0.00532226]
[1739805000696,3.2078,2819.2,2819.0,0.70936]
[1739805000894,3.2078,2819.2,2818.9,0.00532226]
[1739805001096,0.9375,2819.4,2818.9,0.00532226]
[1739805001300,4.1793,2819.3,2819.0,0.70936]
[1739805001503,8.45697354,2819.3,2818.9,0.00532226]
[1739805001704,3.2078,2819.0,2818.9,0.00532226]
[1739805001902,3.2078,2819.0,2818.4,0.0332525]
[1739805002204,4.27767354,2818.5,2817.5,3.2078]
[1739805002500,3.2078,2818.2,2817.7,0.70967]
[1739805002807,3.2078,2818.2,2816.9,4.423419]
[1739805002808,3.2078,2818.2,2817.8,0.70967]
[1739805003101,3.2078,2817.9,2817.3,3.091]
[1739805003301,3.2078,2817.9,2817.7,0.00532226]
[1739805003609,3.21312226,2818.3,2817.7,3.09132226]
[1739805003915,3.2078,2818.0,2817.7,0.00532226]
[1739805004304,3.21312226,2818.3,2817.7,0.00532226]
[1739805004602,3.21312226,2818.3,2818.2,0.70957]
[1739805004803,3.21312226,2818.3,2817.7,0.00532226]
[1739805005005,0.00532226,2818.3,2818.2,0.70957]
[1739805006203,0.00532226,2818.3,2818.2,3.91737]
[1739805006902,0.00532226,2818.3,2818.2,9.91737]
[1739805007303,0.9847,2819.1,2818.9,0.70937]
[1739805007605,0.9847,2819.1,2819.0,0.70937]
[1739805007797,4.1917,2819.7,2819.0,3.2078]
[1739805007798,5.1646,2819.7,2819.0,3.2078]
[1739805008001,3.2078,2819.4,2819.1,3.061]
[1739805008305,3.2078,2819.7,2819.1,3.061]
[1739805008509,0.00532226,2819.5,2819.4,0.70927]
[1739805014111,3.2078,2820.1,2820.0,0.7091]
[1739805014317,3.2078,2820.1,2819.9,0.70913]
[1739805014511,3.2078,2820.1,2820.0,0.70912]
[1739805015415,0.97822226,2820.3,2820.2,0.70907]
[1739805015810,3.21312226,2820.3,2820.2,0.70907]
[1739805016007,3.21312226,2820.3,2820.0,0.70912]
[1739805016207,3.21312226,2820.3,2819.8,3.06]
[1739805016208,3.21312226,2820.3,2820.2,0.70907]
[1739805016807,3.21312226,2820.3,2819.9,0.70913]
[1739805017011,3.21312226,2820.3,2819.6,2.76212]
[1739805017214,3.21312226,2820.3,2819.7,3.06]
[1739805017411,3.2078,2820.0,2819.6,2.76211]
[1739805017615,3.21312226,2820.3,2820.2,0.70907]
[1739805018308,3.21312226,2820.3,2819.6,4.0491]
[1739805018508,3.21312226,2820.3,2820.2,0.70907]
[1739805018718,3.21312226,2820.3,2820.2,0.99267]
[1739805019814,0.00532226,2820.3,2820.2,0.99267]
[1739805022914,0.00532226,2820.3,2820.2,4.05167]
[1739805023617,0.00532226,2820.3,2820.2,0.99267]
[1739805024218,0.00532226,2820.3,2820.2,0.2836]
[1739805025019,3.21312226,2820.3,2820.2,0.2836]
[1739805025818,3.21312226,2820.3,2820.2,0.99267]
[1739805026018,3.21312226,2820.3,2820.2,0.2836]
[1739805026422,3.21312226,2820.3,2820.2,0.99267]
[1739805026816,3.21312226,2820.3,2820.2,0.2836]
[1739805027718,3.92216226,2820.3,2820.2,0.2836]
[1739805028025,3.21312226,2820.3,2819.5,3.059]
[1739805028214,3.71823239,2820.2,2819.3,4.1253]
[1739805028519,3.71823239,2819.9,2819.7,0.70918]
[1739805028819,3.71823239,2819.9,2819.4,3.058]
[1739805028820,3.2078,2819.8,2819.4,3.058]
[1739805029016,3.71823239,2819.9,2819.3,0.9175]
[1739805029017,3.2078,2819.5,2819.3,3.058]
[1739805029218,3.71823239,2819.9,2819.2,3.058]
[1739805029219,3.2078,2819.8,2819.2,3.058]
[1739805029722,3.2078,2819.8,2819.7,0.70919]
[1739805030323,3.2078,2819.8,2819.2,3.058]
[1739805030922,3.2078,2819.8,2819.7,0.70919]
[1739805032622,3.2078,2819.8,2819.5,0.70923]
[1739805032821,3.2078,2819.8,2819.2,4.0231]
[1739805033131,3.2078,2819.8,2819.2,3.058]
[1739805033325,3.2078,2819.8,2819.5,0.70922]
[1739805033520,3.2078,2819.8,2819.2,3.058]
[1739805033823,3.2078,2819.8,2819.3,3.058]
[1739805034027,3.2078,2819.5,2819.1,3.2078]
[1739805034222,3.2078,2819.5,2819.4,0.70927]
[1739805034729,3.2078,2819.8,2819.7,0.70919]
[1739805035119,3.2078,2819.8,2819.2,3.058]
[1739805035324,3.2078,2819.8,2819.7,0.70918]
[1739805035727,3.2078,2819.8,2819.4,3.058]
[1739805036030,3.2078,2819.8,2819.7,0.70919]
[1739805036230,3.2078,2819.8,2819.4,3.058]
[1739805036526,3.2078,2819.8,2819.6,0.70921]
[1739805036726,3.2078,2819.8,2819.4,3.058]
[1739805036921,3.2078,2819.5,2819.0,0.00532226]
[1739805037118,3.71823239,2819.4,2819.3,0.70929]
[1739805037436,3.2078,2819.5,2819.4,0.70927]
[1739805037721,3.2078,2819.5,2819.2,0.70931]
[1739805037929,3.2078,2819.5,2819.3,0.70929]
[1739805038128,3.2078,2819.5,2819.0,0.00532226]
[1739805038331,3.2078,2819.2,2819.1,0.70935]
[1739805038530,3.2078,2819.2,2819.0,0.00532226]
[1739805038925,3.71823239,2819.1,2819.0,0.00532226]
[1739805040029,4.42758239,2819.1,2819.0,0.00532226]
[1739805040626,9.71823239,2819.1,2818.2,3.058]
[1739805040827,3.2078,2818.5,2818.2,0.70956]
[1739805041037,3.2078,2818.5,2817.9,3.9558]
[1739805041231,3.2078,2818.3,2817.9,3.058]
[1739805041435,3.2078,2818.3,2818.2,0.70957]
[1739805042442,3.2078,2818.3,2818.0,0.00532226]
[1739805042443,3.2078,2818.3,2818.1,0.70958]
[1739805042645,3.2078,2818.3,2818.0,0.00532226]
[1739805042838,3.2078,2818.3,2818.1,0.70958]
[1739805043142,3.2078,2818.3,2818.0,0.00532226]
[1739805043444,3.2078,2818.3,2818.2,0.70957]
[1739805043646,0.00532226,2818.5,2818.1,0.9216]
[1739805043845,0.00532226,2818.5,2818.4,0.70952]
[1739805044842,0.00532226,2818.5,2818.1,0.9216]
[1739805045437,3.2078,2818.3,2818.0,0.00532226]
[1739805045640,3.2078,2818.3,2818.2,0.70955]
[1739805045842,0.00532226,2818.5,2818.0,0.00532226]
[1739805046043,0.00532226,2818.5,2818.4,0.70952]
[1739805046844,3.2078,2818.6,2818.5,0.7095]
[1739805047036,3.2078,2818.6,2818.5,1.6727]
[1739805047444,3.2078,2818.9,2818.5,1.6727]
[1739805047650,3.2078,2818.9,2818.8,0.70942]
[1739805048042,0.9525,2819.1,2818.5,1.6727]
[1739805048043,0.95782226,2819.1,2818.5,1.6727]
[1739805048235,0.95782226,2819.1,2819.0,0.70937]
[1739805048746,0.95782226,2819.1,2818.5,0.9632]
[1739805048940,3.2078,2818.9,2818.8,0.70941]
[1739805049138,3.2078,2818.9,2818.6,3.058]
[1739805049342,3.2078,2818.9,2817.1,2.915]
[1739805049343,3.2078,2818.6,2816.6,1.9188]
[1739805049540,3.2078,2817.1,2816.6,1.9188]
[1739805049836,3.2078,2817.1,2816.8,0.70991]
[1739805050041,3.2078,2817.1,2816.6,1.9188]
[1739805050243,3.2078,2817.7,2817.5,0.70974]
[1739805050642,3.2078,2817.7,2817.6,0.70972]
[1739805050841,3.2078,2817.7,2817.2,3.058]
[1739805051752,3.2078,2817.7,2817.4,0.70976]
[1739805051946,3.2078,2817.7,2817.6,0.70972]
[1739805052141,3.2078,2817.7,2817.5,0.70974]
[1739805052348,0.00532226,2817.9,2817.8,0.70967]
[1739805053249,0.00532226,2817.9,2817.4,1.8705]
[1739805053653,0.00532226,2817.9,2817.7,0.70968]
[1739805054038,0.00532226,2817.9,2817.4,1.8705]
[1739805054242,0.00532226,2817.9,2817.8,0.70967]
[1739805054743,0.00532226,2817.9,2817.7,0.70968]
[1739805055049,3.2078,2817.8,2817.4,4.9285]
[1739805055252,3.2078,2817.8,2817.7,0.70967]
[1739805055451,3.2078,2817.8,2817.7,0.7097]
[1739805055848,3.2078,2817.8,2817.4,3.9659]
[1739805056050,3.2078,2817.8,2817.3,0.9665]
[1739805056051,3.2078,2817.8,2817.3,3.058]
[1739805056347,3.2078,2817.8,2817.6,0.70971]
[1739805056745,3.2078,2817.8,2817.3,3.058]
[1739805057044,3.2078,2817.4,2817.3,0.7098]
[1739805057241,3.71823239,2817.6,2816.8,0.996]
[1739805057448,3.2078,2817.4,2817.0,0.70986]
[1739805057749,3.2078,2817.4,2817.1,0.70983]
[1739805058053,3.2078,2817.4,2817.2,0.70982]
[1739805058256,3.2078,2817.4,2816.8,0.996]
[1739805058546,3.2078,2817.4,2817.2,0.70982]
[1739805058750,3.2078,2817.4,2816.8,0.996]
[1739805058945,3.2078,2817.4,2817.1,0.70984]
[1739805059145,3.2078,2817.4,2816.8,0.996]
[1739805059347,3.2078,2817.4,2817.3,0.7098]
[1739805060351,3.2078,2817.7,2817.6,0.70972]
[1739805060546,3.2078,2817.7,2817.3,3.058]
[1739805060954,3.2078,2817.7,2817.4,0.70976]
[1739805061350,3.2078,2817.7,2817.3,3.058]
[1739805061547,3.2078,2817.4,2817.3,3.7678]
[1739805062249,3.2078,2817.4,2817.3,3.058]
[1739805062450,3.2078,2817.4,2816.9,0.284]
[1739805062451,3.2078,2817.4,2817.0,0.70987]
[1739805062652,3.2078,2817.4,2817.0,3.058]
[1739805063353,2.85298247,2817.4,2817.3,0.7098]
[1739805063749,3.2078,2817.7,2817.6,0.70972]
[1739805064455,3.2078,2817.7,2817.5,3.058]
[1739805064456,0.97042226,2817.9,2817.5,3.058]
[1739805064662,0.00532226,2817.9,2817.8,0.70967]
[1739805067160,3.2078,2818.0,2817.9,0.70965]
[1739805067353,3.2078,2818.5,2818.1,1.77397]
[1739805067554,10.64426478,2818.2,2816.6,0.28280495]
[1739805067755,3.2078,2817.3,2816.6,3.2078]
[1739805067954,3.2078,2817.6,2816.9,3.4918]
[1739805068457,0.00532226,2817.5,2817.4,0.70977]
[1739805069860,0.00532226,2817.5,2817.3,3.058]
[1739805070058,0.00532226,2817.5,2817.3,0.70979]
[1739805070254,0.00532226,2817.5,2817.4,0.70977]
[1739805070452,0.00532226,2817.5,2817.3,0.70979]
[1739805070853,0.00532226,2817.5,2817.0,0.96212226]
[1739805071059,3.2078,2817.3,2817.1,3.058]
[1739805071652,0.00532226,2817.5,2817.1,3.058]
[1739805071860,0.00532226,2817.5,2817.1,6.2658]
[1739805072061,0.00532226,2817.5,2817.4,0.70977]
[1739805073657,0.00532226,2817.5,2817.4,3.91757]
[1739805073856,0.00532226,2817.5,2817.4,0.70977]
[1739805074457,0.00532226,2817.5,2817.2,0.9481]
[1739805074861,3.2078,2817.4,2817.1,3.057]
[1739805075054,3.2078,2817.4,2817.0,0.00532226]
[1739805075055,0.70981,2817.3,2817.0,0.00532226]
[1739805075258,3.2078,2817.1,2817.0,0.00532226]
[1739805075664,3.91765,2817.1,2817.0,0.00532226]
[1739805075962,0.70987,2817.0,2816.9,0.284]
[1739805076267,1.9031,2817.0,2816.9,0.284]
[1739805077162,0.9616,2817.0,2816.9,0.284]
[1739805077471,1.67147,2817.0,2816.9,0.284]
[1739805078263,0.70992,2816.8,2816.7,0.00532226]
[1739805078567,3.2078,2816.8,2816.7,0.00532226]
[1739805078955,3.91772,2816.8,2816.7,0.00532226]
[1739805079765,9.91772,2816.8,2816.7,0.00532226]
[1739805079967,3.2078,2816.8,2816.7,0.00532226]
[1739805080167,3.91772,2816.8,2816.7,0.00532226]
[1739805080865,3.2078,2816.8,2816.7,0.00532226]
[1739805081266,3.2078,2816.8,2816.7,0.71527226]
[1739805082171,3.91772,2816.8,2816.7,0.00532226]
[1739805082568,3.2078,2816.8,2816.7,0.00532226]
[1739805083157,3.91772,2816.8,2816.7,0.00532226]
[1739805084072,9.91772,2816.8,2816.7,0.00532226]
[1739805084471,3.91772,2816.8,2816.7,0.00532226]
[1739805086867,3.2078,2816.8,2816.7,0.00532226]
[1739805087265,3.91772,2816.8,2816.7,0.00532226]
[1739805087773,3.2078,2816.8,2816.7,0.71527226]
[1739805087969,3.91772,2816.8,2816.7,0.00532226]
[1739805090068,3.2078,2816.8,2816.7,0.00532226]
[1739805090780,3.2078,2816.8,2816.7,0.71527226]
[1739805091078,3.91772,2816.8,2816.7,0.00532226]
[1739805091575,3.2078,2816.8,2816.7,0.00532226]
[1739805091768,3.91772,2816.8,2816.7,0.00532226]
[1739805092474,3.91772,2816.8,2816.7,0.71527226]
[1739805092671,3.2078,2816.8,2816.7,0.71527226]
[1739805092976,3.91772,2816.8,2816.7,0.00532226]
[1739805093568,9.91772,2816.8,2816.7,0.00532226]
[1739805093763,3.91772,2816.8,2816.7,0.00532226]
[1739805093971,9.91772,2816.8,2816.7,0.00532226]
[1739805094271,3.91772,2816.8,2816.7,0.00532226]
[1739805094576,6.8928304,2816.8,2816.7,0.00532226]
[1739805095276,6.1829104,2816.8,2816.7,0.00532226]
[1739805095477,6.8928304,2816.8,2816.7,0.00532226]
[1739805095880,3.2078,2816.8,2816.7,0.00532226]
[1739805096079,3.2078,2816.8,2816.7,0.71527226]
[1739805098882,0.00532226,2817.5,2817.1,0.70984]
[1739805098883,3.2078,2817.3,2817.1,0.70984]
[1739805099182,3.2078,2817.3,2816.7,0.00532226]
[1739805099383,3.6849404,2817.2,2816.9,0.70988]
[1739805099684,2.9751104,2817.2,2816.7,0.00532226]
[1739805100082,0.70987,2817.1,2816.7,0.71526226]
[1739805100381,2.9751104,2817.2,2816.7,0.00532226]
[1739805100578,0.70991,2816.9,2816.7,0.00532226]
[1739805101276,3.2078,2817.0,2816.7,0.00532226]
[1739805101472,3.2078,2817.0,2816.9,0.7099]
[1739805101672,3.2078,2817.0,2816.7,0.00532226]
[1739805101880,3.2078,2817.0,2816.8,0.70992]
[1739805102074,3.2078,2817.0,2816.7,0.00532226]
[1739805102280,3.2078,2817.0,2816.9,0.7099]
[1739805103183,3.2078,2817.3,2816.7,0.00532226]
[1739805103387,0.00532226,2817.5,2817.3,0.70979]
[1739805103583,0.00532226,2817.5,2817.4,0.70977]
[1739805103879,0.00532226,2817.5,2817.4,3.76577]
[1739805106184,0.00532226,2817.5,2817.4,3.76477]
[1739805106383,2.9751104,2818.1,2817.4,5.9752]
[1739805106682,2.9751104,2818.1,2817.8,0.70966]
[1739805106892,0.9292,2818.3,2818.0,0.70961]
[1739805107185,2.9751104,2818.4,2817.9,0.70964]
[1739805107577,2.98043266,2818.4,2817.9,0.70964]
[1739805107989,2.98043266,2818.4,2817.7,3.2078]
[1739805108189,0.00532226,2818.4,2818.0,3.2078]
[1739805108486,0.00532226,2818.4,2818.1,0.70959]
[1739805108885,0.00532226,2818.4,2818.1,0.70958]
[1739805109085,0.00532226,2818.4,2818.0,3.2078]
[1739805109990,0.71485226,2818.4,2818.1,0.70959]
[1739805110292,0.00532226,2818.4,2818.0,3.2078]
[1739805110883,0.00532226,2818.4,2818.3,0.70955]
[1739805112187,0.00532226,2818.4,2818.3,3.91735]
[1739805112390,0.9945,2818.9,2818.3,3.2078]
[1739805112591,0.9945,2818.9,2818.7,0.70945]
[1739805112784,3.2078,2819.3,2818.4,3.054]
[1739805113094,3.2078,2819.3,2819.0,0.70936]
[1739805113384,3.2078,2819.3,2818.7,3.2078]
[1739805113585,3.9709104,2819.5,2819.1,0.70934]
[1739805113782,3.9709104,2819.5,2819.0,3.2078]
[1739805113983,3.9709104,2819.5,2819.4,0.70927]
[1739805114285,2.9751104,2819.9,2819.3,3.2078]
[1739805114489,3.9628104,2819.9,2819.3,3.2078]
[1739805114690,0.70921,2819.7,2819.3,3.91709]
[1739805114893,2.9751104,2819.6,2819.3,3.2078]
[1739805115195,0.70926,2819.5,2819.0,3.76336]
[1739805115399,0.70926,2819.5,2819.0,3.054]
[1739805115694,2.9751104,2819.3,2818.9,3.21312226]
[1739805115890,0.70933,2819.2,2818.9,3.92250226]
[1739805116188,2.62683,2819.2,2818.9,3.21312226]
[1739805116395,1.9175,2819.2,2819.0,0.70937]
[1739805116595,1.9175,2819.2,2819.1,0.70934]
[1739805117592,3.2078,2819.4,2819.3,0.70929]
[1739805118293,2.9751104,2819.6,2819.5,0.70924]
[1739805119788,2.9751104,2819.6,2818.9,9.05359226]
[1739805119990,2.9751104,2819.6,2819.0,1.77343]
[1739805120202,2.9751104,2819.6,2819.3,0.70928]
[1739805120397,2.9751104,2819.6,2819.0,3.3357]
[1739805120794,2.9751104,2819.6,2819.4,0.70926]
[1739805121595,2.9751104,2819.6,2819.0,0.2837]
[1739805121792,2.9751104,2819.6,2819.5,0.70924]
[1739805122801,2.9751104,2819.6,2819.2,3.2078]
[1739805123197,2.9751104,2819.6,2819.4,0.70925]
[1739805123693,2.663,2819.7,2819.2,3.2078]
[1739805123694,1.9538,2819.7,2819.2,3.2078]
[1739805123998,6.1829104,2820.3,2819.9,0.70912]
[1739805124192,7.2186104,2820.3,2819.6,1.77305]
[1739805124392,7.2186104,2820.3,2819.5,8.03192]
[1739805124393,7.2186104,2820.3,2820.0,0.7091]
[1739805124700,4.2435,2820.3,2819.6,1.77305]
[1739805124892,4.2435,2820.3,2819.5,6.2588]
[1739805125191,4.2435,2820.3,2820.1,0.70907]
[1739805125392,4.2435,2820.3,2819.6,2.72145]
[1739805125593,0.70907,2820.2,2819.9,0.70913]
[1739805125991,4.2435,2820.3,2819.5,6.2588]
[1739805126192,4.95255,2820.3,2820.0,0.7091]
[1739805126393,0.7091,2820.1,2819.5,6.2588]
[1739805126592,2.9751104,2820.1,2819.6,3.05]
[1739805126897,3.2078,2820.0,2819.4,3.05]
[1739805127093,3.2078,2820.0,2819.6,0.70921]
[1739805127295,3.2078,2820.0,2819.4,3.05]
[1739805127487,0.70915,2819.9,2819.4,1.77316]
[1739805127705,3.2078,2820.0,2819.4,1.77316]
[1739805127992,2.9751104,2820.1,2820.0,0.70912]
[1739805128299,0.70908,2820.2,2820.0,0.70912]
[1739805128501,4.2435,2820.3,2819.6,1.77305]
[1739805128796,0.70914,2820.0,2819.7,0.70918]
[1739805128997,2.9751104,2820.1,2819.5,3.2078]
[1739805129199,2.9751104,2820.1,2819.6,1.77305]
[1739805129398,2.9751104,2820.1,2820.0,0.70912]
[1739805129590,7.2186104,2820.3,2819.6,1.77305]
[1739805129786,0.70909,2820.2,2819.6,1.77305]
[1739805129992,4.2435,2820.3,2820.2,0.70907]
[1739805130197,4.2435,2820.3,2819.8,3.049]
[1739805130393,2.9751104,2820.1,2819.5,3.2078]
[1739805130588,0.70913,2820.0,2819.5,1.77311]
[1739805130796,2.9751104,2820.1,2819.9,0.70914]
[1739805130994,2.9751104,2820.1,2819.5,1.77311]
[1739805131196,2.9751104,2820.1,2819.9,0.70912]
[1739805131694,2.9751104,2820.1,2819.6,1.77304]
[1739805131896,2.9751104,2820.1,2820.0,0.70912]
[1739805132094,4.2435,2820.3,2819.5,4.98091]
[1739805132295,0.70913,2820.0,2819.9,0.70914]
[1739805132698,0.70915,2819.9,2819.8,0.70916]
[1739805133295,2.9751104,2820.1,2819.5,3.2078]
[1739805133496,0.70916,2819.9,2819.8,0.70916]
[1739805133891,2.9751104,2820.1,2819.5,1.7731]
[1739805134103,0.70915,2819.9,2819.8,0.70914]
[1739805134801,0.70923,2819.6,2819.4,0.70926]
[1739805134995,0.9573,2819.8,2819.3,3.048]
[1739805135297,0.70921,2819.7,2819.5,0.70923]
[1739805135499,0.70921,2819.7,2819.3,3.048]
[1739805135500,0.9573,2819.8,2819.3,3.048]
[1739805135703,1.66648,2819.8,2819.6,0.70921]
[1739805135895,0.70919,2819.7,2819.3,3.048]
[1739805136100,0.70919,2819.7,2819.6,0.70922]
[1739805136400,0.9573,2819.8,2819.3,3.048]
[1739805136601,0.9573,2819.8,2819.7,0.70919]
[1739805136805,3.2078,2819.9,2819.8,0.70917]
[1739805137102,1.0357,2820.3,2820.2,0.70907]
[1739805138201,1.0317,2820.4,2819.9,1.77284]
[1739805138396,1.0317,2820.4,2820.3,0.70904]
[1739805138603,3.2078,2820.6,2820.5,0.70899]
[1739805138807,3.2078,2820.6,2820.0,6.1829104]
[1739805138999,3.91678,2820.6,2820.0,3.2078]
[1739805139199,3.6841404,2820.4,2819.9,0.9663]
[1739805139502,3.2078,2820.6,2820.3,0.70903]
[1739805140006,3.2078,2820.6,2820.4,0.70902]
[1739805140299,3.2078,2820.6,2819.9,4.0133]
[1739805140700,3.91678,2820.6,2820.3,0.70904]
[1739805140901,3.2078,2820.6,2820.4,0.709]
[1739805141405,3.2078,2820.6,2820.5,0.70899]
[1739805141801,3.2078,2820.6,2820.1,3.2078]
[1739805142002,3.2078,2820.6,2820.5,0.70899]
[1739805142500,0.9739,2820.8,2820.1,4.9805]
[1739805142501,0.9739,2820.8,2820.6,0.70895]
[1739805142712,0.9739,2820.8,2820.7,0.70894]
[1739805143099,6.1829104,2821.2,2820.4,3.05232226]
[1739805143500,6.1829104,2820.9,2820.4,3.05232226]
[1739805143800,0.9606,2820.8,2820.4,3.05232226]
[1739805144005,0.70896,2820.7,2820.5,0.70899]
[1739805144200,1.66953,2820.8,2820.5,0.70899]
[1739805144400,0.70894,2820.7,2820.5,0.70899]
[1739805144907,0.70897,2820.6,2820.4,0.71432226]
[1739805145105,0.9606,2820.8,2820.5,0.70899]
[1739805145106,0.70895,2820.7,2820.5,0.70899]
[1739805145412,0.9647,2820.7,2820.4,0.00532226]
[1739805145600,0.70899,2820.5,2820.4,0.71433226]
[1739805145797,0.70899,2820.5,2820.4,0.71434226]
[1739805146405,3.91678,2820.6,2820.4,0.71434226]
[1739805146615,3.2078,2820.6,2820.4,0.71434226]
[1739805146912,0.70899,2820.5,2820.4,0.71434226]
[1739805147102,0.70899,2820.5,2820.4,0.00532226]
[1739805147296,3.91677,2820.6,2820.5,0.70899]
[1739805147495,3.2078,2820.6,2820.5,0.70899]
[1739805148101,3.91677,2820.6,2820.4,0.00532226]
[1739805148309,3.2078,2820.6,2820.5,0.70899]
[1739805148702,3.2078,2820.6,2820.4,0.00532226]
[1739805149005,6.1829104,2820.6,2820.4,0.00532226]
[1739805149208,0.70899,2820.5,2820.4,0.00532226]
[1739805149608,0.70899,2820.5,2820.4,0.28892226]
[1739805150604,6.1829104,2820.6,2819.8,0.70915]
[1739805150803,0.70914,2819.9,2819.7,0.70918]
[1739805151301,0.70915,2819.9,2819.7,0.70918]
[1739805151701,0.70916,2819.9,2819.7,0.70917]
[1739805151911,0.70916,2819.9,2819.5,0.00532226]
[1739805152107,4.7479704,2820.0,2819.5,0.00532226]
[1739805152308,2.9751104,2820.0,2819.6,0.7092]
[1739805152506,0.70919,2819.8,2819.6,0.7092]
[1739805152810,2.9751104,2820.0,2819.5,0.71455226]
[1739805153006,0.7092,2819.7,2819.5,0.00532226]
[1739805153213,0.70922,2819.6,2819.5,0.00532226]
[1739805153910,4.87412,2819.6,2819.5,0.00532226]
[1739805154506,0.70931,2819.3,2819.1,0.70934]
[1739805154909,3.2078,2819.3,2818.7,4.141]
[1739805155113,2.9751104,2819.4,2818.7,5.91458]
[1739805155315,2.9751104,2819.4,2819.0,0.70936]
[1739805155513,0.70932,2819.2,2819.0,0.70936]
[1739805155707,2.9751104,2819.4,2818.8,0.00532226]
[1739805155907,0.70936,2819.1,2818.8,0.71472226]
[1739805156105,2.9751104,2819.1,2818.8,0.00532226]
[1739805156406,0.70939,2818.9,2818.8,0.00532226]
[1739805156815,2.64049,2818.9,2818.8,0.00532226]
[1739805157305,0.70955,2818.3,2817.7,2.9727]
[1739805157508,1.77358,2818.8,2817.7,2.9727]
[1739805157509,3.6846804,2818.2,2817.7,2.9727]
[1739805157821,3.6847004,2818.2,2817.9,0.70965]
[1739805158011,2.9751104,2818.2,2817.7,2.9727]
[1739805158211,0.70962,2818.1,2817.8,0.70967]
[1739805158412,0.7096,2818.1,2817.8,0.70967]
[1739805158613,6.18823266,2818.2,2817.8,0.70967]
[1739805158810,0.70961,2818.1,2817.8,0.70967]
[1739805159016,0.70961,2818.1,2817.8,0.70966]
[1739805159321,6.18823266,2818.2,2817.7,0.00532226]
[1739805159322,0.70967,2817.8,2817.7,0.00532226]
[1739805162420,1.0067,2818.1,2817.7,0.00532226]
[1739805162624,0.00532226,2818.2,2817.7,0.00532226]
[1739805162625,0.00532226,2818.2,2817.8,3.2078]
[1739805162920,2.9751104,2818.1,2817.7,0.00532226]
[1739805163117,2.9751104,2817.8,2817.7,0.00532226]
[1739805163425,3.6847804,2817.8,2817.7,0.00532226]
[1739805163723,3.2078,2818.1,2817.7,0.00532226]
[1739805164222,2.98043266,2818.2,2817.7,0.00532226]
[1739805164715,0.00532226,2818.2,2818.1,0.7096]
[1739805164915,0.00532226,2818.2,2818.0,2.7247]
[1739805165118,2.9751104,2818.1,2818.0,0.998]
[1739805165321,2.9751104,2818.1,2817.7,3.21312226]
[1739805165521,2.9751104,2818.0,2817.7,3.21312226]
[1739805165820,0.00532226,2818.2,2817.7,3.21312226]
[1739805166119,0.00532226,2818.2,2817.8,0.9701]
[1739805166325,2.9751104,2818.1,2817.8,2.62176]
[1739805166510,2.9751104,2818.1,2818.0,0.70962]
[1739805166715,0.00532226,2818.2,2818.1,0.7096]
[1739805166915,0.00532226,2818.2,2817.9,0.70964]
[1739805167116,0.00532226,2818.2,2817.8,1.9121]
[1739805167320,0.71489226,2818.2,2817.9,0.70964]
[1739805167624,0.00532226,2818.2,2817.9,0.70963]
[1739805167819,0.00532226,2818.2,2817.8,1.9121]
[1739805167820,0.00532226,2818.2,2818.0,0.70962]
[1739805168019,0.00532226,2818.2,2817.8,1.9121]
[1739805168217,3.21312226,2818.2,2817.8,0.9701]
[1739805168519,0.70961,2818.1,2817.8,0.9701]
[1739805168823,3.21312226,2818.2,2817.8,0.9701]
[1739805169021,3.21312226,2818.2,2817.7,3.04832226]
[1739805169022,2.9751104,2818.0,2817.7,0.00532226]
[1739805169223,0.70966,2817.9,2817.7,0.00532226]
[1739805169616,2.9751104,2818.0,2817.7,0.00532226]
[1739805169921,3.91747,2817.8,2817.7,0.00532226]
[1739805170617,4.85937,2817.8,2817.7,0.00532226]
[1739805171124,0.9419,2817.8,2817.7,0.00532226]